bitfinex-derivatives/quotes_SOLF0:USTF0_20250216
["timestamp","ask_amount","ask_price","bid_price","bid_amount"]
[1739714703639,4.23364178,190.4,190.37,0.0336026]
[1739714705243,85.30336527,190.38,190.37,0.0336026]
[1739714705541,85.30336527,190.38,190.26,117.82]
[1739714705740,193.0,190.37,190.26,117.82]
[1739714706336,481.0,190.36,190.15,15.04279385]
[1739714706540,481.0,190.35,190.16,0.96557075]
[1739714706735,0.0342102,190.27,190.24,0.03436342]
[1739714707041,193.0,190.26,190.24,0.03436342]
[1739714707247,174.06486875,190.26,190.24,0.03436342]
[1739714707437,174.06486875,190.26,190.15,15.04279385]
[1739714707637,174.06486875,190.26,190.23,0.03836164]
[1739714707837,174.06486875,190.26,190.15,15.04279385]
[1739714708038,174.09815585,190.26,190.23,0.03581509]
[1739714708444,174.09815585,190.26,190.15,15.04279385]
[1739714708645,174.09815585,190.26,190.23,0.03729072]
[1739714708845,0.0332871,190.26,190.15,15.04279385]
[1739714709047,0.0332871,190.26,190.23,0.03551242]
[1739714709250,0.0332871,190.26,190.15,15.04279385]
[1739714709556,0.0332871,190.26,190.19,0.03676525]
[1739714712652,21.0532871,190.26,190.19,0.03676525]
[1739714713154,4.2,190.25,190.19,0.03676525]
[1739714714551,4.2,190.25,190.19,4.05374658]
[1739714714748,4.2,190.25,190.2,0.96538133]
[1739714714949,21.0532871,190.26,190.2,0.96538133]
[1739714715348,21.0532871,190.26,190.21,3.0556]
[1739714715557,21.0532871,190.26,190.22,0.96538133]
[1739714716155,21.7032871,190.26,190.22,0.96538133]
[1739714716453,21.7032871,190.26,190.19,0.03676525]
[1739714719551,21.7032871,190.26,190.15,15.04279385]
[1739714719856,462.06486875,190.25,190.15,15.04279385]
[1739714720458,85.30336527,190.24,190.15,15.04279385]
[1739714720658,0.03910313,190.22,190.18,0.03934613]
[1739714722055,21.02,190.23,190.18,0.03934613]
[1739714723360,0.0364303,190.22,190.18,0.03934613]
[1739714724963,462.06486875,190.21,190.18,0.03934613]
[1739714725161,462.06486875,190.21,190.07,12.93522462]
[1739714725860,462.06486875,190.21,190.08,12.93522462]
[1739714726261,462.06486875,190.21,190.04,12.93522462]
[1739714726463,0.03375336,190.18,190.14,0.03424055]
[1739714726664,174.02966956,190.17,190.14,0.03424055]
[1739714727563,145.15592008,190.16,190.11,117.83333285]
[1739714727860,0.03375336,190.18,190.12,0.96594392]
[1739714728164,0.03375336,190.18,190.12,6.4672]
[1739714728361,0.03375336,190.18,190.12,9.7449]
[1739714728761,0.03375336,190.18,190.13,0.03312272]
[1739714728961,0.03375336,190.18,190.13,0.99880087]
[1739714730062,21.03,190.17,190.13,0.99880087]
[1739714730563,0.66,190.16,190.13,0.03312272]
[1739714731872,0.66,190.16,190.13,0.99901678]
[1739714732164,0.66,190.16,190.13,0.03312272]
[1739714732365,126.91701482,190.16,190.13,0.03312272]
[1739714735266,126.91701482,190.16,190.11,117.83333285]
[1739714735267,212.22038009,190.16,190.11,117.83333285]
[1739714735564,126.91701482,190.16,190.11,117.79376407]
[1739714736566,126.91701482,190.16,190.12,0.03491169]
[1739714736866,212.22038009,190.16,190.12,0.03491169]
[1739714737467,85.96336527,190.16,190.12,0.03491169]
[1739714738060,85.30336527,190.13,190.12,0.03491169]
[1739714738665,54.80576527,190.13,190.12,1.00074752]
[1739714739263,20.02925248,190.12,190.11,117.79376407]
[1739714739568,14.94615248,190.12,190.11,118.75959142]
[1739714740068,14.94615248,190.12,190.11,117.79376407]
[1739714740469,0.03821489,190.13,190.11,118.75967386]
[1739714740669,0.03821489,190.13,190.1,0.03590108]
[1739714740865,0.03821489,190.13,190.01,0.96621592]
[1739714741066,3.1165,190.14,190.01,0.96621592]
[1739714741765,126.25701482,190.15,190.02,117.98]
[1739714741971,0.03723557,190.09,190.06,0.03923935]
[1739714743772,0.03723557,190.09,190.02,115.00305441]
[1739714743974,0.03723557,190.09,190.04,6.6321]
[1739714744776,0.03723557,190.09,190.05,0.966053]
[1739714745873,0.03723557,190.09,190.03,0.966053]
[1739714746173,0.03723557,190.09,190.04,0.96627799]
[1739714746473,0.03723557,190.09,190.02,115.00305441]
[1739714746774,0.03723557,190.09,190.03,0.96630878]
[1739714747272,126.29425039,190.09,190.02,115.00305441]
[1739714747673,0.03723557,190.09,190.03,4.29746062]
[1739714747968,141.21515961,190.13,190.04,0.96636062]
[1739714748876,0.66,190.16,190.04,0.96636062]
[1739714749072,0.03558743,190.1,190.07,0.03559248]
[1739714749272,0.66,190.16,190.07,0.03559248]
[1739714750369,0.04017781,190.13,190.07,0.03559248]
[1739714752675,0.66,190.16,190.07,0.03559248]
[1739714753078,85.12041177,190.18,190.07,0.03559248]
[1739714753384,20.1,190.2,190.07,0.03559248]
[1739714753676,20.1,190.2,190.05,0.96577466]
[1739714753882,0.03426758,190.15,190.12,0.03828336]
[1739714757186,20.12,190.21,190.12,0.03828336]
[1739714758284,0.03967226,190.18,190.12,0.03828336]
[1739714758890,20.12,190.21,190.12,0.03828336]
[1739714760290,0.03368579,190.18,190.12,0.03828336]
[1739714760490,20.12,190.21,190.12,0.03828336]
[1739714761188,10.8029,190.21,190.12,0.03828336]
[1739714761390,3.2259,190.3,190.12,0.03828336]
[1739714761586,0.03551245,190.18,190.11,0.96568309]
[1739714761787,3.2259,190.3,190.19,0.03780906]
[1739714761987,3.2259,190.3,190.2,117.96]
[1739714762288,0.03499631,190.26,190.23,0.0361782]
[1739714770294,126.25701482,190.34,190.23,0.0361782]
[1739714771199,6.5924,190.36,190.23,0.0361782]
[1739714771400,6.5924,190.36,190.22,0.96539351]
[1739714771598,0.03566939,190.31,190.28,0.03497079]
[1739714772596,0.03566939,190.31,190.2,117.96]
[1739714772901,0.03566939,190.31,190.21,0.96536344]
[1739714773497,3.26816939,190.31,190.2,117.96]
[1739714773703,3.26816939,190.31,190.24,0.03318581]
[1739714773903,6.33676939,190.31,190.24,0.03318581]
[1739714774303,3.80174637,190.3,190.24,0.03318581]
[1739714774804,6.33676939,190.31,190.24,0.03318581]
[1739714775704,3.80084916,190.3,190.24,0.03318581]
[1739714775900,6.33676939,190.31,190.24,0.03318581]
[1739714776205,6.33676939,190.31,190.2,117.96]
[1739714776708,126.25701482,190.3,190.2,117.96]
[1739714777204,0.03781304,190.27,190.23,0.03636396]
[1739714781205,126.25701482,190.26,190.09,5.48874256]
[1739714781407,126.25701482,190.25,190.02,3.333]
[1739714781610,3.1039,190.29,190.03,6.45628933]
[1739714781807,3.1039,190.29,190.04,0.9659592]
[1739714782009,3.79822953,190.28,190.04,0.9659592]
[1739714782403,0.0353226,190.18,190.14,0.03960036]
[1739714782709,126.25701482,190.26,190.04,0.9659592]
[1739714782903,0.03630801,190.18,190.14,0.03909304]
[1739714783106,3.79822953,190.25,190.04,0.9659592]
[1739714783310,0.03476627,190.18,190.14,0.03496565]
[1739714790715,0.03476627,190.18,190.14,1.00072873]
[1739714791113,0.03476627,190.18,190.14,4.19912873]
[1739714791310,0.03476627,190.18,190.15,0.96576308]
[1739714793418,0.03476627,190.18,190.14,3.23336565]
[1739714793616,0.03476627,190.18,190.14,0.03496565]
[1739714793817,10.83,190.17,190.14,0.03496565]
[1739714794726,13.9171,190.17,190.14,0.03496565]
[1739714796518,10.83,190.17,190.14,0.03496565]
[1739714801726,0.03476627,190.18,190.14,0.03496565]
[1739714803026,10.85,190.17,190.14,0.03496565]
[1739714808729,10.85,190.17,190.14,1.00068565]
[1739714809034,10.85,190.17,190.14,0.03496565]
[1739714810131,10.85,190.17,190.15,5.2582]
[1739714810726,10.85,190.17,190.16,5.2579]
[1739714813036,0.03476627,190.18,190.16,5.2579]
[1739714813236,0.03476627,190.18,190.17,5.2576]
[1739714814131,5.6124,190.17,190.14,0.03496565]
[1739714814333,5.6124,190.17,190.14,1.00071845]
[1739714814840,5.6124,190.17,190.16,5.2579]
[1739714815233,0.03476627,190.18,190.16,0.96566381]
[1739714815437,0.03476627,190.18,190.14,0.03496565]
[1739714815637,0.03476627,190.18,190.14,1.00062347]
[1739714816234,0.03476627,190.18,190.17,5.2576]
[1739714816834,0.03476627,190.18,190.17,6.22318661]
[1739714817239,126.25701482,190.25,190.23,5.256]
[1739714817634,126.25701482,190.25,190.15,3.1196]
[1739714817835,126.25701482,190.24,190.18,5.2574]
[1739714818039,126.25701482,190.24,190.15,3.1196]
[1739714818238,126.25701482,190.24,190.16,0.9655741]
[1739714818440,0.04040783,190.21,190.18,0.03864643]
[1739714818837,0.04040783,190.21,190.2,5.2565]
[1739714819332,0.04040783,190.21,190.2,6.22185809]
[1739714822249,126.25701482,190.24,190.2,0.96535809]
[1739714822543,3.2615,190.3,190.21,0.96535809]
[1739714822742,5.6,190.31,190.17,0.96535809]
[1739714822934,5.6,190.31,190.18,0.96535809]
[1739714823139,5.6,190.31,190.19,0.96535809]
[1739714823338,5.6,190.31,190.2,0.96535809]
[1739714823643,0.03674611,190.27,190.23,0.03343206]
[1739714824037,0.03674611,190.27,190.23,3.23023206]
[1739714824235,0.03674611,190.27,190.26,5.2549]
[1739714825546,0.03674611,190.27,190.24,5.2555]
[1739714825841,0.03674611,190.27,190.25,0.96520339]
[1739714826041,0.03674611,190.27,190.23,3.23023206]
[1739714826241,0.03674611,190.27,190.24,0.96520339]
[1739714826837,0.03674611,190.27,190.26,5.2552]
[1739714827245,0.03674611,190.27,190.26,6.22029946]
[1739714829045,0.03674611,190.27,190.26,6.2202738]
[1739714832146,0.03674611,190.27,190.26,6.22026765]
[1739714833852,0.03674611,190.27,190.26,6.22035266]
[1739714835353,0.03674611,190.27,190.26,5.2552]
[1739714835546,0.03674611,190.27,190.26,6.22027264]
[1739714836151,4.611e-05,190.27,190.26,6.22027264]
[1739714838755,4.611e-05,190.27,190.26,6.22011977]
[1739714841061,4.611e-05,190.33,190.32,5.2535]
[1739714841259,4.611e-05,190.33,190.32,124.07841977]
[1739714842257,3.121,190.44,190.32,118.82491977]
[1739714842560,3.121,190.44,190.33,0.96491977]
[1739714843464,0.03371525,190.4,190.37,0.03525487]
[1739714844062,0.03371525,190.4,190.38,5.2516]
[1739714844362,0.03371525,190.4,190.37,0.03525487]
[1739714846156,0.03371525,190.4,190.34,0.96464486]
[1739714846363,0.03371525,190.4,190.32,117.86]
[1739714847462,0.03371525,190.4,190.34,0.03515171]
[1739714847663,0.03371525,190.4,190.32,117.86]
[1739714848956,0.03371525,190.4,190.34,0.03835356]
[1739714850162,0.03371525,190.4,190.35,5.2525]
[1739714850563,0.03371525,190.4,190.34,0.03835356]
[1739714851666,0.03371525,190.4,190.38,5.2517]
[1739714851866,0.03371525,190.4,190.34,0.03835356]
[1739714852063,0.03371525,190.4,190.39,5.2516]
[1739714852271,0.03371525,190.4,190.34,0.03835356]
[1739714853171,0.03371525,190.4,190.39,5.2516]
[1739714853565,0.03371525,190.4,190.34,0.03835356]
[1739714854867,0.03371525,190.4,190.37,5.2519]
[1739714855068,0.03371525,190.4,190.34,0.03835356]
[1739714855271,0.03371525,190.4,190.35,5.2524]
[1739714855663,0.03371525,190.4,190.34,0.03835356]
[1739714855867,0.03371525,190.4,190.36,5.2523]
[1739714857172,0.03371525,190.4,190.39,5.2516]
[1739714862576,0.03371525,190.4,190.39,6.21609979]
[1739714863180,1.525e-05,190.4,190.39,6.21609979]
[1739714866784,1.525e-05,190.4,190.39,6.21573076]
[1739714868282,1.525e-05,190.4,190.39,5.2516]
[1739714868485,1.525e-05,190.4,190.39,6.21583975]
[1739714869287,9.6315,190.53,190.46,5.2496]
[1739714869688,9.6315,190.53,190.45,5.2499]
[1739714870288,0.0401306,190.51,190.47,0.0385117]
[1739714872081,0.0401306,190.51,190.34,0.9643299]
[1739714872389,14.8794,190.53,190.4,5.251]
[1739714872584,14.8794,190.53,190.41,0.9643299]
[1739714872789,9.6315,190.53,190.42,0.9643299]
[1739714873087,9.6315,190.53,190.43,5.2504]
[1739714873288,0.03673332,190.49,190.46,0.03546239]
[1739714875486,0.03673332,190.49,190.47,5.2493]
[1739714876091,0.03673332,190.49,190.48,5.2491]
[1739714876593,0.03673332,190.49,190.46,0.03546239]
[1739714876891,0.03673332,190.49,190.46,5.28486239]
[1739714877087,0.03673332,190.49,190.46,0.03546239]
[1739714877385,0.03673332,190.49,190.47,5.2491]
[1739714877590,0.03673332,190.49,190.46,0.03546239]
[1739714880795,0.03673332,190.49,190.47,5.2493]
[1739714880993,0.03673332,190.49,190.46,0.03546239]
[1739714881596,0.03673332,190.49,190.46,0.99960281]
[1739714881894,0.03673332,190.49,190.48,5.2491]
[1739714883699,0.03673332,190.49,190.46,5.28506239]
[1739714884001,0.03673332,190.49,190.46,0.03546239]
[1739714884702,0.03673332,190.49,190.46,5.28506239]
[1739714885199,0.03673332,190.49,190.46,0.03546239]
[1739714886497,0.03673332,190.49,190.46,5.28506239]
[1739714886698,0.03673332,190.49,190.46,0.03546239]
[1739714887699,0.03673332,190.49,190.47,5.2494]
[1739714888002,0.03673332,190.49,190.46,0.03546239]
[1739714888501,0.03673332,190.49,190.48,5.2491]
[1739714888897,0.03673332,190.49,190.48,6.21311853]
[1739714889495,0.03673332,190.49,190.48,6.21311378]
[1739714889697,6.2975,190.53,190.51,5.2481]
[1739714889898,3.2057,190.58,190.45,117.78]
[1739714890098,3.2057,190.58,190.46,0.96396787]
[1739714890306,3.2057,190.58,190.49,5.2485]
[1739714890604,3.2057,190.58,190.45,117.78]
[1739714890804,3.2057,190.58,190.46,0.96396672]
[1739714891006,0.03571334,190.53,190.5,0.03501329]
[1739714891907,0.03571334,190.53,190.5,0.998975]
[1739714892102,0.03571334,190.53,190.5,5.28331329]
[1739714892302,0.03571334,190.53,190.5,0.03501329]
[1739714895111,0.03571334,190.53,190.52,5.248]
[1739714896206,1.334e-05,190.53,190.52,6.21184258]
[1739714902716,1.334e-05,190.53,190.52,6.21170727]
[1739714903118,1.334e-05,190.53,190.52,0.96370727]
[1739714903414,1.334e-05,190.53,190.5,0.03501329]
[1739714903616,1.334e-05,190.53,190.51,5.2483]
[1739714903813,1.334e-05,190.53,190.5,0.03501329]
[1739714905313,1.334e-05,190.53,190.45,117.78]
[1739714905520,1.334e-05,190.53,190.46,0.96408999]
[1739714905918,1.334e-05,190.53,190.47,5.2492]
[1739714906119,1.334e-05,190.53,190.45,117.78]
[1739714906319,1.334e-05,190.53,190.48,0.03924745]
[1739714906522,1.334e-05,190.53,190.48,5.28814745]
[1739714907115,1.334e-05,190.53,190.48,0.03924745]
[1739714907624,1.334e-05,190.53,190.52,5.248]
[1739714908819,1.334e-05,190.53,190.52,6.21184888]
[1739714912722,1.334e-05,190.53,190.52,6.21159308]
[1739714917627,1.334e-05,190.53,190.52,6.21129642]
[1739714919328,1.334e-05,190.53,190.52,6.21126167]
[1739714924436,1.334e-05,190.53,190.52,6.21150755]
[1739714932749,1.334e-05,190.53,190.52,6.21134045]
[1739714934242,1.334e-05,190.53,190.52,7.261099]
[1739714935249,1.334e-05,190.53,190.52,6.29775855]
[1739714935548,1.334e-05,190.53,190.52,7.26105354]
[1739714935942,3.3398,190.68,190.52,2.01305354]
[1739714936143,3.3398,190.68,190.53,4.28589499]
[1739714936349,3.3343,190.69,190.54,0.96329499]
[1739714937145,3.3343,190.69,190.66,5.2441]
[1739714937344,3.3343,190.69,190.67,117.66]
[1739714937544,3.36960179,190.69,190.67,117.66]
[1739714945661,3.36960179,190.69,190.67,122.9038]
[1739714946158,3.36960179,190.69,190.67,117.66]
[1739714948154,3.36960179,190.69,190.67,92.481]
[1739714949260,3.36960179,190.69,190.66,0.03378413]
[1739714951162,3.36960179,190.69,190.66,5.27788413]
[1739714951363,3.36960179,190.69,190.66,0.03378413]
[1739714953057,3.36960179,190.69,190.66,5.27788413]
[1739714953664,3.36960179,190.69,190.66,0.03378413]
[1739714953963,3.36960179,190.69,190.67,5.2438]
[1739714954867,3.36960179,190.69,190.66,0.03378413]
[1739714955059,3.36960179,190.69,190.66,5.27788413]
[1739714955566,3.36960179,190.69,190.66,0.03378413]
[1739714956366,3.36960179,190.69,190.66,5.27788413]
[1739714959262,3.36960179,190.69,190.66,0.03378413]
[1739714959569,129.62661661,190.69,190.66,0.03378413]
[1739714960270,129.62661661,190.69,190.68,5.2436]
[1739714961071,126.29231661,190.69,190.68,5.2436]
[1739714963876,126.29231661,190.69,190.66,0.03378413]
[1739714964473,126.29231661,190.69,190.68,5.2436]
[1739714965473,0.03530179,190.69,190.68,5.2436]
[1739714968479,3.1706,190.74,190.73,5.2422]
[1739714969179,3.1397,190.77,190.68,117.64]
[1739714969380,3.1397,190.77,190.69,8.08296165]
[1739714969680,0.03451466,190.75,190.71,0.03363817]
[1739714969880,3.1397,190.77,190.58,0.96296581]
[1739714970180,0.03979965,190.75,190.71,0.03885335]
[1739714970375,3.1101,190.78,190.59,0.96296581]
[1739714970574,3.1101,190.78,190.6,0.96296581]
[1739714970772,3.1101,190.78,190.67,0.03463403]
[1739714970972,0.03992366,190.7,190.67,0.03463403]
[1739714971177,3.1101,190.78,190.67,0.03463403]
[1739714971381,0.03440287,190.7,190.69,5.2433]
[1739714971581,0.03331263,190.74,190.69,0.96296581]
[1739714971783,0.03331263,190.74,190.7,0.96296581]
[1739714971978,0.03331263,190.74,190.72,5.2425]
[1739714972578,0.03331263,190.74,190.71,5.2427]
[1739714972778,0.03331263,190.74,190.68,0.03473451]
[1739714973180,0.03331263,190.74,190.72,5.2424]
[1739714973584,0.03331263,190.74,190.68,0.03473451]
[1739714973883,0.03331263,190.74,190.71,5.2427]
[1739714974082,0.03331263,190.74,190.68,0.03473451]
[1739714974083,0.03331263,190.74,190.72,0.96284032]
[1739714974286,0.03331263,190.74,190.72,5.2425]
[1739714975083,0.03331263,190.74,190.68,0.03473451]
[1739714976579,0.03331263,190.74,190.73,5.2422]
[1739714977088,0.03331263,190.74,190.69,117.6]
[1739714977289,0.03331263,190.74,190.7,0.96283331]
[1739714978488,0.03331263,190.74,190.73,5.2422]
[1739714981283,0.03331263,190.74,190.73,122.8422]
[1739714981483,0.03331263,190.74,190.73,123.80499169]
[1739714982186,0.03331263,190.74,190.73,122.8422]
[1739714983090,0.03331263,190.74,190.73,117.6]
[1739714983990,0.03331263,190.74,190.73,122.8422]
[1739714985483,0.03331263,190.74,190.73,123.80498273]
[1739714985682,0.03331263,190.74,190.73,122.8422]
[1739714985883,0.03331263,190.74,190.73,123.80497697]
[1739714986286,0.03331263,190.74,190.73,122.8422]
[1739714986484,0.03331263,190.74,190.73,123.80497535]
[1739714987191,0.03331263,190.74,190.73,122.8422]
[1739714987389,0.03331263,190.74,190.73,123.80494641]
[1739714988198,0.03331263,190.74,190.73,123.80494087]
[1739714988395,3.22,190.85,190.76,5.2412]
[1739714989000,3.22,190.85,190.77,5.2411]
[1739714989497,0.03844063,190.83,190.79,0.03896236]
[1739714991595,0.03844063,190.83,190.79,5.27936236]
[1739714992296,0.03844063,190.83,190.8,5.2402]
[1739714993086,0.03844063,190.83,190.79,0.03896236]
[1739714993395,0.03844063,190.83,190.79,5.27936236]
[1739714993990,0.03844063,190.83,190.79,0.03896236]
[1739714994797,0.03844063,190.83,190.79,5.27936236]
[1739714994995,0.03844063,190.83,190.79,0.03896236]
[1739714995195,0.03844063,190.83,190.8,5.2403]
[1739714997296,0.03844063,190.83,190.81,5.2399]
[1739714997496,0.03844063,190.83,190.79,0.03896236]
[1739714997895,0.03844063,190.83,190.81,5.2398]
[1739714998594,0.03844063,190.83,190.79,0.03896236]
[1739714999200,0.03844063,190.83,190.81,5.24]
[1739714999700,0.03844063,190.83,190.79,0.03896236]
[1739714999896,0.03844063,190.83,190.81,5.2398]
[1739715000101,0.03844063,190.83,190.79,0.03896236]
[1739715000602,0.03844063,190.83,190.82,5.2397]
[1739715007404,0.03844063,190.83,190.8,5.2401]
[1739715007604,0.03844063,190.83,190.79,0.03896236]
[1739715008006,0.03844063,190.83,190.8,5.2401]
[1739715008511,0.03844063,190.83,190.79,0.03896236]
[1739715010113,130.09204612,190.82,190.79,0.03896236]
[1739715010515,126.25701482,190.82,190.79,0.03896236]
[1739715010907,3.83597007,190.81,190.79,0.03896236]
[1739715011207,126.25701482,190.82,190.79,0.03896236]
[1739715012010,126.25701482,190.82,190.73,117.6]
[1739715012209,0.03844063,190.83,190.73,117.6]
[1739715012407,3.8370824,190.81,190.73,117.6]
[1739715012811,3.8370824,190.81,190.75,5.2416]
[1739715013308,3.87210239,190.8,190.76,0.03704927]
[1739715013509,3.87210239,190.8,190.73,117.6]
[1739715013711,3.0781,190.79,190.73,117.6]
[1739715013911,6.9151824,190.79,190.73,117.6]
[1739715014417,3.8370824,190.78,190.73,117.6]
[1739715014917,3.8370824,190.77,190.74,0.03718512]
[1739715015314,3.8370824,190.77,190.75,5.2416]
[1739715015517,3.8370824,190.76,190.74,0.03718512]
[1739715016110,3.0781,190.79,190.74,0.03718512]
[1739715016812,3.83636916,190.78,190.74,0.03718512]
[1739715017017,3.83636916,190.78,190.77,5.2411]
[1739715019127,0.03501999,190.8,190.74,0.03718512]
[1739715019325,0.03501999,190.8,190.79,5.2406]
[1739715021232,186.7823878,190.86,190.83,5.2394]
[1739715021433,3.76632767,190.85,190.83,5.2394]
[1739715021929,3.76632767,190.84,190.83,5.2394]
[1739715022334,0.0338861,190.85,190.84,5.2392]
[1739715022527,0.0338861,190.85,190.75,3.3697]
[1739715022729,0.0338861,190.85,190.82,0.0399429]
[1739715023032,0.0338861,190.85,190.75,3.3697]
[1739715023328,0.0338861,190.85,190.76,0.96265553]
[1739715023532,0.0338861,190.85,190.84,5.2392]
[1739715024335,85.12041177,190.9,190.86,5.2385]
[1739715025234,85.12041177,190.9,190.83,0.03320651]
[1739715025534,0.03315357,190.88,190.83,0.03320651]
[1739715025731,85.12041177,190.9,190.83,0.03320651]
[1739715026236,74.96861177,190.9,190.83,0.03320651]
[1739715026538,74.96861177,190.94,190.9,5.2373]
[1739715026935,75.00302241,190.94,190.9,5.27240495]
[1739715027137,75.00302241,190.94,190.91,5.2372]
[1739715027638,75.00302241,190.94,190.93,5.2367]
[1739715027838,44.71432241,190.94,190.93,5.2367]
[1739715028540,197.66839727,191.04,190.9,0.03510495]
[1739715029035,197.66839727,191.04,190.89,117.56]
[1739715029234,9.6935,191.03,190.89,117.56]
[1739715029633,0.03538638,190.98,190.94,0.03365292]
[1739715031339,0.03538638,190.98,190.94,5.27005292]
[1739715032437,0.03538638,190.98,190.94,0.03365292]
[1739715034636,0.03538638,190.98,190.95,5.2361]
[1739715035033,0.03538638,190.98,190.94,0.03365292]
[1739715035339,0.03538638,190.98,190.97,5.2356]
[1739715036038,8.638e-05,190.98,190.97,5.2356]
[1739715037842,8.638e-05,190.98,190.97,6.1970905]
[1739715038642,8.638e-05,190.98,190.97,0.9614905]
[1739715039146,8.638e-05,190.98,190.94,0.03365292]
[1739715043249,8.638e-05,190.98,190.95,5.2362]
[1739715043845,8.638e-05,190.98,190.94,0.03365292]
[1739715044045,8.638e-05,190.98,190.96,5.2357]
[1739715044644,8.638e-05,190.98,190.97,5.2356]
[1739715047654,8.638e-05,190.98,190.95,5.236]
[1739715047957,8.638e-05,190.98,190.94,0.03365292]
[1739715048355,126.25701482,190.97,190.94,0.03365292]
[1739715050060,126.25701482,190.97,190.89,117.56]
[1739715050255,126.25701482,190.96,190.89,117.56]
[1739715050456,126.25701482,190.95,190.89,117.56]
[1739715050656,126.25701482,190.95,190.89,102.23803216]
[1739715051354,0.03931293,190.94,190.9,0.03916167]
[1739715051759,0.03931293,190.94,190.89,102.23803216]
[1739715052459,5.2369,190.93,190.89,102.23803216]
[1739715052862,126.25701482,190.92,190.78,117.46]
[1739715053062,126.25701482,190.91,190.89,0.03471889]
[1739715053257,126.25701482,190.9,190.78,117.46]
[1739715053462,126.25701482,190.89,190.8,5.2403]
[1739715054157,126.25701482,190.89,190.79,5.2406]
[1739715054359,126.25701482,190.89,190.78,117.46]
[1739715054661,0.0345871,190.85,190.82,0.03521349]
[1739715063464,126.29160192,190.85,190.82,0.03521349]
[1739715070477,126.29160192,190.85,190.82,5.27491349]
[1739715071973,126.29160192,190.85,190.82,0.03521349]
[1739715072178,126.29160192,190.85,190.83,5.2394]
[1739715072682,126.29160192,190.85,190.82,0.03521349]
[1739715073076,126.29160192,190.85,190.83,5.2392]
[1739715073273,126.29160192,190.85,190.82,0.03521349]
[1739715075977,126.29160192,190.85,190.83,5.2395]
[1739715077083,126.29160192,190.85,190.84,5.2392]
[1739715077277,0.0345871,190.85,190.84,5.2392]
[1739715077983,126.25701482,190.93,190.82,0.03521349]
[1739715078586,126.25701482,190.93,190.89,5.2376]
[1739715078785,126.25701482,190.93,190.79,6.2711]
[1739715078986,126.25701482,190.93,190.8,0.96220319]
[1739715079186,0.03464388,190.88,190.84,0.04023133]
[1739715079590,0.03464388,190.88,190.86,5.2386]
[1739715080780,0.03464388,190.88,190.84,0.04023133]
[1739715081387,0.03464388,190.88,190.84,5.27913133]
[1739715081686,0.03464388,190.88,190.84,0.04023133]
[1739715084290,126.25701482,190.87,190.84,0.04023133]
[1739715086192,126.25701482,190.87,190.85,5.2388]
[1739715086393,126.25701482,190.87,190.84,0.04023133]
[1739715092602,126.25701482,190.87,190.84,5.27943133]
[1739715093692,126.25701482,190.87,190.84,0.04023133]
[1739715095698,126.25701482,190.86,190.84,0.04023133]
[1739715097598,126.25701482,190.86,190.85,5.2389]
[1739715098404,0.03464388,190.88,190.87,5.2384]
[1739715103599,0.03464388,190.88,190.85,5.2387]
[1739715104496,0.03464388,190.88,190.84,0.04023133]
[1739715104702,0.03464388,190.88,190.84,1.00247834]
[1739715104909,0.03464388,190.88,190.86,5.2385]
[1739715106006,0.03464388,190.88,190.84,0.04023133]
[1739715109207,0.03464388,190.88,190.86,5.2386]
[1739715110113,0.03464388,190.88,190.84,5.27923133]
[1739715110810,0.03464388,190.88,190.85,5.2389]
[1739715111314,0.03464388,190.88,190.84,0.04023133]
[1739715113317,0.03464388,190.88,190.85,5.2387]
[1739715114916,0.03464388,190.88,190.86,5.2385]
[1739715116519,0.03464388,190.88,190.85,5.2387]
[1739715116716,0.03464388,190.88,190.84,0.04023133]
[1739715117315,0.03464388,190.88,190.85,5.2387]
[1739715117510,0.03464388,190.88,190.84,0.04023133]
[1739715118121,0.03464388,190.88,190.85,5.2387]
[1739715118313,0.03464388,190.88,190.84,0.04023133]
[1739715118718,0.03464388,190.88,190.84,5.27933133]
[1739715119215,0.03464388,190.88,190.84,0.04023133]
[1739715121519,0.03464388,190.88,190.84,5.27933133]
[1739715123121,0.03464388,190.88,190.84,0.04023133]
[1739715124423,0.03464388,190.88,190.85,5.2387]
[1739715125223,0.03464388,190.88,190.87,5.2384]
[1739715126424,0.03464388,190.88,190.85,5.2389]
[1739715127922,0.03464388,190.88,190.84,0.04023133]
[1739715129720,0.03464388,190.88,190.87,5.2384]
[1739715135925,0.03464388,190.88,190.84,0.04023133]
[1739715137223,0.03464388,190.88,190.86,5.2384]
[1739715138127,0.03464388,190.88,190.87,5.2384]
[1739715148639,0.03464388,190.88,190.85,3.1945]
[1739715148937,0.03464388,190.88,190.86,5.2384]
[1739715149335,0.03464388,190.88,190.87,5.2384]
[1739715155944,0.03464388,190.88,190.86,122.7386]
[1739715157242,0.03464388,190.88,190.87,5.2384]